bitfinex/quotes_ETHUSD_20251224
["timestamp","ask_amount","ask_price","bid_price","bid_amount"]
[1766596757576,0.002,2943.8,2943.1,7.63512581]
[1766596757985,0.002,2943.8,2943.1,4.23734796]
[1766596758148,4.0156,2943.8,2943.1,4.27132573]
[1766596758348,4.0156,2943.8,2943.2,0.85521898]
[1766596758683,4.0156,2943.8,2943.3,0.03397546]
[1766596759401,4.0156,2943.8,2943.2,0.85521898]
[1766596760190,4.0156,2943.8,2943.2,4.25288098]
[1766596760762,4.0156,2943.8,2943.2,0.85521898]
[1766596761081,4.0156,2943.8,2943.2,4.25281227]
[1766596761254,4.0156,2943.8,2943.3,0.76505368]
[1766596761867,4.0156,2943.8,2943.1,3.39776552]
[1766596762065,4.0156,2943.8,2943.2,3.39764035]
[1766596762391,4.0156,2943.8,2943.3,3.39747572]
[1766596762592,4.0156,2943.8,2943.2,3.39760058]
[1766596762770,4.0156,2943.8,2943.3,0.67953456]
[1766596764108,4.0156,2943.8,2943.0,0.883]
[1766596764305,4.0136,2943.7,2942.8,3.39806157]
[1766596764481,4.08150019,2943.7,2942.8,3.39806157]
[1766596764802,4.08150019,2943.7,2942.9,3.39800494]
[1766596765203,4.08150019,2943.7,2943.0,3.39788809]
[1766596765204,4.0136,2943.7,2943.0,3.39788809]
[1766596765398,4.0136,2943.5,2943.0,3.39788809]
[1766596765766,4.0136,2943.5,2942.9,3.43192852]
[1766596769778,4.0136,2943.5,2942.9,6.82993728]
[1766596769977,4.0136,2943.5,2942.9,6.7959572]
[1766596771408,4.0156,2943.5,2942.9,6.7959572]
[1766596771605,4.0156,2943.5,2942.9,7.47555292]
[1766596772411,4.0156,2943.5,2943.0,0.03397893]
[1766596773511,4.0156,2943.5,2943.1,3.39777785]
[1766596774926,4.0156,2943.5,2943.0,4.31482033]
[1766596777320,4.0156,2943.5,2943.1,2.042]
[1766596777509,4.0156,2943.5,2943.0,4.31482033]
[1766596777818,4.0156,2943.5,2943.1,3.39776088]
[1766596779213,4.0156,2943.5,2943.0,5.15504645]
[1766596779406,4.0156,2943.5,2943.0,5.12106752]
[1766596780387,4.0156,2943.5,2943.0,5.15504645]
[1766596781892,4.0156,2943.5,2943.0,8.55293975]
[1766596782120,0.002,2943.5,2943.1,0.92325355]
[1766596783412,0.002,2943.5,2943.1,0.95723132]
[1766596784013,0.002,2943.8,2943.2,3.3976624]
[1766596784327,4.1656,2943.8,2943.1,4.32097804]
[1766596785298,4.52566222,2943.8,2943.1,4.28072449]
[1766596786124,4.1656,2943.8,2943.1,4.28072449]
[1766596787612,4.1656,2943.8,2943.2,0.03397662]
[1766596791333,4.1656,2943.8,2943.1,4.28072449]
[1766596791834,4.1636,2943.7,2943.1,4.28072449]
[1766596793556,4.1636,2943.7,2943.1,3.39772449]
[1766596793756,4.1636,2943.7,2943.1,4.28072449]
[1766596795125,4.1636,2943.6,2943.1,0.883]
[1766596796428,0.002,2943.8,2943.2,0.03397662]
[1766596796648,0.002,2944.3,2943.4,4.81984369]
[1766596796838,0.002,2944.3,2943.5,2.95797316]
[1766596798954,0.002,2944.3,2943.6,6.7944014]
[1766596799259,4.1656,2944.3,2943.7,0.97523746]
[1766596799432,4.1656,2944.3,2943.7,0.03397085]
[1766596800435,0.002,2944.3,2943.7,0.03397085]
[1766596800744,0.002,2944.4,2943.7,4.85381454]
[1766596800943,0.002,2944.4,2943.8,6.7939398]
[1766596801162,0.002,2944.4,2943.9,0.91696854]
[1766596801463,0.002,2944.7,2944.0,5.59093452]
[1766596801662,0.002,2945.0,2944.1,0.03396623]
[1766596801959,3.8206,2945.4,2944.3,4.81984369]
[1766596802132,3.8206,2945.4,2944.4,0.91696277]
[1766596802455,3.8206,2945.4,2944.5,0.57368065]
[1766596802656,3.8206,2945.4,2944.6,0.03396047]
[1766596803961,3.8206,2945.4,2944.6,3.42989344]
[1766596806840,3.8206,2945.3,2944.6,3.42989344]
[1766596810561,3.8206,2945.3,2944.5,3.96981034]
[1766596810562,3.8206,2945.2,2944.5,0.57368065]
[1766596810861,3.8206,2945.2,2944.6,0.03396047]
[1766596811256,3.8206,2945.2,2944.6,3.43000714]
[1766596811675,3.8206,2945.3,2944.6,3.43000714]
[1766596811952,0.002,2945.4,2944.9,4.81136527]
[1766596812281,0.002,2945.4,2945.0,0.03395585]
[1766596812481,0.002,2945.4,2945.1,0.48453211]
[1766596818603,0.002,2945.4,2944.9,0.03395701]
[1766596820364,0.002,2945.9,2945.1,4.81136527]
[1766596820571,3.8206,2945.8,2945.2,0.883]
[1766596821202,3.8206,2945.8,2945.3,0.03395239]
[1766596821504,3.8206,2945.8,2945.3,2.041]
[1766596821794,3.8206,2945.8,2945.3,0.2924]
[1766596822000,3.8206,2945.8,2945.2,0.883]
[1766596824205,3.39660338,2945.9,2945.3,0.03395239]
[1766596824206,0.002,2945.9,2945.3,0.03395239]
[1766596824803,3.8206,2946.4,2945.5,4.81136527]
[1766596825001,3.8206,2946.4,2945.6,0.91694894]
[1766596825203,3.8206,2946.4,2945.7,0.57283142]
[1766596825379,3.8206,2946.4,2945.6,0.91694894]
[1766596825380,3.8206,2946.3,2945.8,0.03394663]
[1766596825708,3.8206,2946.3,2945.7,0.03394778]
[1766596826002,3.8206,2946.3,2945.8,0.43118384]
[1766596826210,3.8206,2946.3,2945.9,0.03394548]
[1766596827106,3.8206,2946.3,2945.7,0.03394778]
[1766596829116,3.8206,2946.3,2945.7,3.42871981]
[1766596829314,3.8206,2946.3,2945.7,0.03394778]
[1766596829515,3.8206,2946.3,2945.8,0.43117907]
[1766596829696,3.8206,2946.3,2945.7,0.03394778]
[1766596830013,3.8206,2946.2,2945.7,0.03394778]
[1766596831125,3.8206,2946.0,2945.2,3.3952687]
[1766596831334,3.8041,2945.8,2945.3,3.39523718]
[1766596831518,3.8041,2945.8,2945.3,3.85701329]
[1766596834526,3.83804793,2946.1,2945.3,7.25225316]
[1766596834826,3.8041,2946.0,2945.3,3.39523374]
[1766596836393,3.8041,2945.9,2945.2,3.42924675]
[1766596838200,0.03394793,2945.8,2945.2,3.42924675]
[1766596841130,3.83804793,2945.8,2945.2,3.42924675]
[1766596841428,3.83804793,2945.8,2945.3,0.77076416]
[1766596841626,3.83804793,2945.8,2945.4,0.03395124]
[1766596841827,0.002,2946.2,2945.5,0.883]
[1766596842044,0.002,2946.2,2945.6,0.03394894]
[1766596842234,0.002,2946.2,2945.5,0.883]
[1766596842235,3.39621247,2946.2,2945.5,0.883]
[1766596842403,3.8041,2946.1,2945.5,0.883]
[1766596843740,3.8041,2946.1,2945.6,0.03394894]
[1766596843931,4.0268,2946.0,2945.6,0.03394894]
[1766596844242,4.0268,2946.0,2945.5,0.883]
[1766596844616,4.0268,2946.0,2945.5,4.27799974]
[1766596844815,0.002,2946.2,2945.5,3.39499974]
[1766596845013,4.0268,2946.1,2945.6,0.03394894]
[1766596846314,4.0268,2946.1,2945.5,0.03395009]
[1766596846753,4.0268,2946.0,2945.4,0.03395124]
[1766596846958,4.0268,2946.0,2945.3,3.43018064]
[1766596848220,3.39439375,2946.1,2945.3,0.03495239]
[1766596849020,3.39439375,2946.1,2945.3,3.43017832]
[1766596849966,4.0288,2946.2,2945.4,0.883]
[1766596850119,7.42300416,2946.2,2945.5,0.03395009]
[1766596850449,8.51150436,2946.2,2945.5,0.03395009]
[1766596852549,3.39621613,2946.2,2945.5,0.03395009]
[1766596852723,3.39423226,2946.2,2945.5,0.03395009]
[1766596853350,0.002,2946.1,2945.4,0.883]
[1766596853723,0.002,2946.1,2945.4,1.31092386]
[1766596855139,4.0268,2946.0,2945.4,1.31092386]
[1766596855341,4.0268,2946.0,2945.5,0.03395009]
[1766596855734,0.002,2946.1,2945.5,0.03395009]
[1766596855939,8.83816527,2945.9,2945.4,0.883]
[1766596856259,4.0268,2945.8,2945.4,0.883]
[1766596856876,0.88401653,2945.9,2945.4,0.883]
[1766596857158,4.0268,2946.0,2945.4,0.883]
[1766596857560,4.0268,2946.0,2945.3,0.03495239]
[1766596857764,7.42124228,2946.0,2945.3,0.03495239]
[1766596858355,4.0268,2946.0,2945.4,3.39510843]
[1766596859056,4.0268,2946.0,2945.4,3.39511956]
[1766596859359,4.0268,2946.0,2945.5,0.03395009]
[1766596859563,4.0268,2946.0,2945.4,0.03395124]
[1766596859859,4.0268,2945.9,2945.4,0.03395124]
[1766596860055,4.0268,2945.9,2945.3,0.03495239]
[1766596860261,4.0268,2945.9,2945.3,4.31317854]
[1766596860462,4.0268,2945.9,2945.3,4.31319103]
[1766596860630,4.0268,2945.9,2945.3,0.91795239]
[1766596861565,4.0268,2945.9,2945.3,3.43017705]
[1766596861867,0.002,2946.1,2945.3,7.59628079]
[1766596862036,0.002,2946.1,2945.3,7.5623284]
[1766596862237,3.8643,2946.1,2945.3,7.5623284]
[1766596862559,3.8643,2946.1,2945.3,4.16708853]
[1766596862762,3.8643,2946.1,2945.4,0.84454078]
[1766596862953,3.39634197,2946.1,2945.5,0.03395009]
[1766596863152,3.8623,2946.0,2945.5,0.03395009]
[1766596865445,3.8623,2946.0,2945.5,3.4289516]
[1766596865661,0.002,2946.1,2945.6,0.42734924]
[1766596865858,0.002,2946.1,2945.7,0.03394778]
[1766596866057,0.002,2946.1,2945.6,0.42734924]
[1766596866058,3.93020019,2946.0,2945.3,0.001]
[1766596866256,3.8623,2945.8,2945.3,0.001]
[1766596866456,0.03399571,2945.7,2945.3,0.001]
[1766596867188,3.8623,2945.8,2945.3,3.39618722]
[1766596867486,3.8623,2945.8,2945.4,0.03395124]
[1766596867946,3.8623,2945.8,2945.4,3.42906477]
[1766596868145,3.8643,2946.1,2945.4,0.03395124]
[1766596868382,3.89829571,2946.1,2945.3,3.43009212]
[1766596868559,3.89829571,2946.1,2945.4,0.68254283]
[1766596868760,3.89829571,2946.1,2945.5,0.03395009]
[1766596868971,3.89829571,2946.1,2945.3,3.43017921]
[1766596870191,3.8623,2946.0,2945.3,3.43017921]
[1766596870392,3.89629571,2945.9,2945.3,3.43017921]
[1766596870691,3.89629571,2945.9,2945.3,4.20104374]
[1766596872293,3.89629571,2945.9,2945.3,0.80581692]
[1766596872678,3.89629571,2945.9,2945.3,4.20104665]
[1766596872882,0.002,2946.1,2945.3,7.59628652]
[1766596873195,0.002,2946.1,2945.4,1.09916288]
[1766596873360,0.002,2946.1,2945.5,0.91695009]
[1766596874375,0.002,2946.1,2945.5,4.31189141]
[1766596874969,0.03601184,2946.2,2945.5,4.31189141]
[1766596875195,0.03601184,2946.2,2945.5,7.70690074]
[1766596875393,3.8623,2946.3,2945.6,0.77069007]
[1766596875698,3.39387761,2946.5,2945.7,0.03394778]
[1766596875895,3.8643,2946.6,2945.7,0.03394778]
[1766596876497,1.2893,2947.0,2945.8,6.78932716]
[1766596876696,8.54488797,2947.0,2945.9,1.65349606]
[1766596876899,8.54488797,2947.0,2945.9,1.61955058]
[1766596877087,8.61278816,2947.0,2945.9,1.61955058]
[1766596877395,12.00607613,2947.0,2945.9,1.61955058]
[1766596877596,12.00607613,2947.0,2946.0,0.77109083]
[1766596878000,0.002,2946.6,2946.1,0.03394317]
[1766596878199,0.002,2946.6,2946.2,0.03394202]
[1766596878403,0.002,2946.6,2946.1,0.03394317]
[1766596879610,3.8643,2946.6,2946.1,0.03394317]
[1766596879802,3.8643,2946.6,2946.2,0.41993915]
[1766596879983,11.93817594,2947.0,2946.3,0.03394087]
[1766596880182,1.2893,2947.0,2946.4,0.03393972]
[1766596880586,5.1516,2947.0,2946.4,0.03393972]
[1766596882290,5.1516,2947.0,2946.4,0.50703032]
[1766596883424,5.1516,2947.0,2946.4,3.90097991]
[1766596883928,5.1516,2947.0,2946.4,0.50703032]
[1766596884095,3.8623,2946.9,2946.4,0.50703032]
[1766596884295,3.8623,2946.9,2946.4,0.03393972]
[1766596885023,3.8623,2946.9,2946.4,3.42790844]
[1766596885223,1.2893,2947.0,2946.4,3.39396872]
[1766596885929,3.8623,2946.9,2946.3,0.883]
[1766596886425,3.8623,2946.8,2946.3,0.883]
[1766596886628,3.8623,2946.7,2946.3,0.883]
[1766596887148,3.8623,2946.7,2946.1,3.92194318]
[1766596887799,3.8623,2946.4,2945.6,3.39483934]
[1766596887998,3.8623,2946.4,2945.7,0.883]
[1766596888205,3.8623,2946.3,2945.7,0.883]
[1766596888643,3.93020019,2946.3,2945.7,0.883]
[1766596888935,0.06790019,2946.1,2945.3,0.03495239]
[1766596889136,3.8623,2946.0,2945.3,0.001]
[1766596889320,3.8623,2946.0,2945.3,3.39623454]
[1766596889519,3.8623,2946.0,2945.4,0.03395124]
[1766596891613,3.8623,2946.0,2945.4,3.42904937]
[1766596893141,3.8623,2946.0,2944.9,0.001]
[1766596893142,3.9266,2945.6,2944.9,0.001]
[1766596893448,3.9266,2945.6,2944.9,3.4306016]
[1766596894008,3.9266,2945.6,2944.9,0.03495701]
[1766596894327,3.96056308,2945.9,2945.0,3.39553236]
[1766596894651,3.96056308,2945.9,2945.1,0.0339547]
[1766596894841,3.96056308,2945.9,2945.1,0.37700341]
[1766596895011,3.4285203,2945.9,2945.1,0.37700341]
[1766596895212,3.9266,2945.8,2945.1,0.0339547]
[1766596895535,3.9266,2945.8,2945.2,0.03395355]
[1766596895740,0.03396308,2945.7,2945.2,0.03395355]
[1766596895935,0.03396308,2945.7,2945.1,0.0339547]
[1766596897045,7.35540616,2945.7,2945.1,0.0339547]
[1766596897247,7.32144308,2945.7,2944.9,3.39665223]
[1766596897540,0.03396308,2945.6,2945.0,0.42796522]
[1766596898147,0.03396308,2945.6,2945.1,0.883]
[1766596898725,3.9266,2945.5,2945.1,0.883]
[1766596901756,3.61266308,2945.4,2945.1,0.883]
[1766596902146,3.61266308,2945.4,2945.0,0.001]
[1766596902345,3.5787,2945.3,2944.9,0.001]
[1766596902561,3.5787,2945.1,2944.5,3.43105907]
[1766596903130,0.03396308,2945.0,2944.5,0.001]
[1766596903330,0.03396308,2945.0,2944.5,0.63312186]
[1766596903552,3.61266308,2945.0,2944.5,0.001]
[1766596903732,3.5787,2944.9,2944.5,0.001]
[1766596904174,3.61266308,2944.9,2944.5,0.001]
[1766596904347,3.5787,2944.9,2944.5,0.001]
[1766596904870,3.5787,2945.3,2944.5,3.39714754]
[1766596905032,3.5787,2945.3,2944.6,0.71669621]
[1766596905433,0.03396308,2945.2,2944.6,0.03396047]
[1766596905634,7.00802667,2945.2,2944.5,0.03496162]
[1766596905992,3.5787,2945.1,2944.5,0.03496162]
[1766596906142,3.5787,2944.9,2944.5,0.001]
[1766596908073,7.07607528,2945.1,2944.5,0.001]
[1766596908272,8.09604611,2945.1,2944.5,0.001]
[1766596909382,0.03396308,2945.0,2944.5,0.001]
[1766596909584,3.64660019,2945.3,2944.5,0.001]
[1766596910374,7.04188148,2945.3,2944.5,0.001]
[1766596910555,10.43716277,2945.3,2944.5,0.001]
[1766596910756,6.85846277,2945.3,2944.5,0.001]
[1766596910956,3.5787,2945.2,2944.5,0.001]
[1766596912580,6.9740767,2945.2,2944.5,0.001]
[1766596913283,3.5787,2945.2,2944.5,0.001]
[1766596914984,3.5787,2945.2,2944.5,0.03496162]
[1766596916859,3.5787,2945.2,2944.5,3.43104336]
[1766596917086,3.5787,2945.2,2944.6,0.68272883]
[1766596918475,3.5787,2945.1,2944.5,0.03496162]
[1766596920103,3.5787,2945.1,2944.5,3.43111861]
[1766596920589,3.5787,2945.1,2944.5,6.82728094]
[1766596920787,3.5787,2945.1,2944.5,3.39715699]
[1766596920983,3.5787,2945.1,2944.5,3.43111861]
[1766596921190,3.5787,2945.1,2944.6,0.68273569]
[1766596921390,3.5787,2945.1,2944.5,3.43111861]
[1766596922995,3.5787,2945.1,2944.6,2.041]
[1766596923182,3.5787,2945.1,2944.5,3.43111861]
[1766596923884,3.5787,2945.1,2944.5,0.03496162]
[1766596924074,3.5787,2945.1,2944.5,0.001]
[1766596924600,3.5787,2945.1,2944.5,3.39713893]
[1766596924888,3.5787,2945.1,2944.5,4.16479177]
[1766596925297,3.5787,2945.1,2944.5,0.76865284]
[1766596926271,3.5787,2945.1,2944.5,4.16480785]
[1766596926671,3.5787,2945.1,2944.6,0.03396047]
[1766596928295,0.002,2945.3,2944.7,0.883]
[1766596928496,0.002,2945.3,2944.8,1.00896307]
[1766596928701,0.002,2945.3,2944.8,0.97500491]
[1766596928880,3.5502,2945.3,2944.8,0.97500491]
[1766596929199,3.5502,2945.3,2944.7,0.883]
[1766596929498,3.5502,2945.3,2944.9,3.39570104]
[1766596929801,3.5432,2945.3,2944.9,3.39570104]
[1766596930099,3.5432,2945.3,2945.0,0.03395585]
[1766596930400,3.5432,2945.3,2944.9,0.43128533]
[1766596932990,3.5452,2945.3,2944.9,0.43128533]
[1766596933395,3.5452,2945.3,2944.9,3.82698309]
[1766596933606,3.5482,2945.8,2945.0,0.03395585]
[1766596933901,3.5482,2945.8,2945.1,1.608664]
[1766596934080,3.5482,2945.8,2945.1,6.41926349]
[1766596934487,3.5482,2945.8,2945.2,0.03395355]
[1766596935205,3.5482,2945.8,2945.2,3.42927176]
[1766596935403,3.5482,2945.8,2945.3,1.12459384]
[1766596935709,3.5482,2945.8,2945.1,1.608664]
[1766596935710,3.5482,2945.7,2945.1,1.608664]
[1766596935886,3.5482,2945.7,2945.1,5.00412826]
[1766596936080,3.5482,2945.7,2945.2,0.03395355]
[1766596936487,3.5482,2945.7,2945.1,1.608664]
[1766596936906,3.5482,2945.7,2945.2,0.03395355]
[1766596937408,3.5482,2945.6,2945.1,0.883]
[1766596938207,3.5482,2945.6,2944.8,3.39575819]
[1766596938397,3.5482,2945.6,2945.0,3.39558341]
[1766596938708,3.5482,2945.6,2945.1,0.0339547]
[1766596938930,0.0339547,2945.5,2944.7,0.883]
[1766596939218,3.61610019,2945.4,2944.7,0.883]
[1766596939405,3.5482,2945.2,2944.7,0.883]
[1766596939722,3.5482,2945.2,2944.7,0.91695931]
[1766596940279,0.0339547,2945.1,2944.7,0.91695931]
[1766596941509,3.5821547,2945.1,2944.7,0.03395931]
[1766596941712,3.5482,2945.0,2944.5,0.001]
[1766596941904,3.5482,2944.8,2944.5,0.001]
[1766596945031,3.5821547,2944.7,2944.5,0.001]
[1766596945737,3.5821547,2944.7,2944.3,0.883]
[1766596946235,3.94037017,2944.7,2944.3,4.27937877]
[1766596946405,3.5482,2944.7,2944.3,4.27937877]
[1766596947027,3.5821547,2944.6,2944.3,0.883]
[1766596947248,3.5821547,2944.6,2944.5,0.001]
[1766596947621,3.5482,2944.6,2944.5,0.001]
[1766596948841,3.5482,2944.6,2944.3,0.03396393]
[1766596949009,3.5821547,2944.6,2944.2,0.001]
[1766596949209,3.5482,2944.4,2944.2,0.001]
[1766596949412,3.5482,2944.4,2944.2,0.03496508]
[1766596949610,3.5482,2944.4,2944.2,0.001]
[1766596952414,0.0339547,2944.7,2944.2,0.001]
[1766596952614,3.6284,2945.2,2944.4,4.81059949]
[1766596952824,3.6284,2945.2,2944.5,0.03396162]
[1766596953643,3.6603547,2945.1,2944.5,0.03396162]
[1766596953940,3.6264,2945.1,2944.5,0.03396162]
[1766596954352,3.6603547,2945.0,2944.5,0.03396162]
[1766596955041,3.6603547,2945.0,2944.5,3.43009565]
[1766596957143,3.6264,2945.0,2944.5,3.43009565]
[1766596957457,3.6264,2945.1,2944.5,7.94272749]
[1766596957631,3.6264,2945.1,2944.5,4.51260354]
[1766596957832,0.002,2945.2,2944.7,4.81059949]
[1766596958014,0.002,2945.2,2944.8,0.03395816]
[1766596958213,3.6264,2945.4,2944.8,0.03395816]
[1766596958419,3.6264,2945.4,2944.9,0.77685577]
[1766596958629,0.0339547,2945.3,2945.0,0.03395585]
[1766596959153,0.0339547,2945.3,2945.0,3.42952407]
[1766596959859,3.4494547,2945.7,2945.0,3.42952407]
[1766596960054,3.4494547,2945.7,2945.0,4.10073823]
[1766596961457,3.51735489,2945.7,2945.0,4.10073823]
[1766596962350,0.002,2945.4,2945.0,4.10073823]
[1766596962553,0.0359547,2945.4,2945.0,4.10073823]
[1766596963643,0.002,2945.7,2945.0,12.30692345]
[1766596963847,0.002,2945.9,2945.3,4.81059949]
[1766596964026,0.002,2945.9,2945.4,0.03395124]
[1766596965745,0.002,2945.9,2945.5,3.39500933]
[1766596968052,3.48340019,2946.4,2945.6,0.03394894]
[1766596968360,3.4155,2946.4,2945.6,0.8046457]
[1766596969556,3.48340019,2946.4,2945.6,0.8046457]
[1766596969786,3.4135,2946.1,2945.5,0.883]
[1766596970132,3.4135,2946.1,2945.5,4.2779997]
[1766596970353,3.4135,2946.1,2945.5,3.3949997]
[1766596970753,0.06790019,2945.2,2944.5,0.001]
[1766596970958,0.06790019,2945.0,2944.5,0.001]
[1766596971261,3.4135,2944.9,2944.5,0.001]
[1766596972657,3.4135,2945.2,2944.5,4.81159949]
[1766596972836,3.4135,2945.2,2944.6,0.03396047]
[1766596973033,3.39656815,2945.9,2944.5,5.63579396]
[1766596973034,3.4135,2945.7,2944.8,4.81059949]
[1766596973238,3.4135,2945.6,2944.7,7.73459949]
[1766596973560,0.06790019,2945.5,2944.7,0.883]
[1766596973874,3.4135,2945.2,2944.7,0.883]
[1766596974974,4.1011179,2945.6,2944.7,0.91695931]
[1766596975177,3.4135,2945.4,2944.7,0.883]
[1766596975547,3.4135,2945.4,2944.8,0.03395816]
[1766596975882,3.4135,2945.4,2944.7,0.883]
[1766596976244,3.4135,2945.4,2944.8,0.03395816]
[1766596977477,3.4135,2945.3,2944.7,0.883]
[1766596977657,3.4135,2945.3,2944.7,1.51510346]
[1766596978573,3.4135,2945.2,2944.7,1.51510346]
[1766596978780,3.4135,2945.2,2944.8,0.03395816]
[1766596985598,3.4135,2945.2,2944.8,0.03495816]
[1766596986876,0.002,2945.4,2944.8,3.43075154]
[1766596987393,0.002,2945.4,2944.8,0.03495816]
[1766596987598,0.002,2945.4,2944.8,3.43073937]
[1766596988898,3.66980019,2945.3,2944.7,0.883]
[1766596989098,3.6019,2945.0,2944.7,0.883]
[1766596990675,3.6019,2945.3,2944.7,4.27888478]
[1766596990967,3.6019,2945.3,2944.8,0.03395816]
[1766596990968,3.63585816,2945.3,2944.8,0.03395816]
[1766596994468,3.63585816,2945.3,2944.8,0.03495816]
[1766596995291,0.002,2945.4,2944.8,8.67271596]
[1766596995494,0.002,2945.4,2944.8,8.6387578]
[1766596995697,0.002,2945.4,2944.9,0.03395701]
[1766596996606,0.002,2945.4,2944.9,2.07495701]
[1766596996785,0.002,2945.4,2944.9,0.03395701]
[1766596997402,0.002,2945.4,2944.9,0.50846854]
[1766596998707,3.6039,2945.4,2944.9,0.50846854]
[1766596999013,3.6039,2945.4,2944.5,0.001]
[1766596999014,3.6019,2944.8,2944.5,0.001]
[1766596999195,3.6019,2944.7,2944.4,0.883]
[1766597001613,3.6019,2945.0,2944.4,4.27927239]
[1766597002717,3.6019,2944.9,2944.4,0.883]
[1766597002907,3.6019,2944.9,2944.4,0.884]
[1766597002908,3.66980019,2944.9,2944.4,0.884]
[1766597004600,3.6019,2944.8,2944.4,0.884]
[1766597007208,3.6019,2944.6,2944.4,0.884]
[1766597007410,3.6019,2944.4,2944.2,0.885]
[1766597007612,3.6019,2944.2,2943.9,0.001]
[1766597007811,3.6019,2943.8,2943.4,0.001]
[1766597007999,3.6019,2944.2,2943.4,3.39837618]
[1766597008320,3.6019,2944.2,2943.5,0.03397316]
[1766597009115,3.66980019,2944.1,2943.5,0.03397316]
[1766597009490,3.66980019,2944.1,2943.5,3.43127873]
[1766597010122,3.6019,2944.1,2943.5,3.43127873]
[1766597010313,7.06619495,2944.3,2943.5,4.31527873]
[1766597010490,8.11922224,2944.3,2943.5,4.31527873]
[1766597011093,8.11922224,2944.3,2944.1,0.001]
[1766597011600,3.4127,2944.2,2944.1,0.001]
[1766597012843,3.48060019,2944.5,2944.1,0.001]
[1766597013130,6.87653878,2944.7,2944.1,0.001]
[1766597013336,3.4127,2944.6,2944.1,0.001]
[1766597013502,3.4127,2944.2,2943.9,0.884]
[1766597015427,3.4127,2944.2,2943.6,3.43111486]
[1766597015632,3.4127,2944.2,2943.7,0.884]
[1766597016032,0.06790019,2944.7,2943.8,0.03396969]
[1766597016222,3.48060019,2944.7,2943.9,3.39678783]
[1766597016537,6.87655206,2944.7,2944.0,0.71673072]
[1766597016695,6.87655206,2944.7,2944.1,0.884]
[1766597016896,3.4127,2944.7,2944.1,4.28061703]
[1766597017096,7.37401821,2945.0,2944.2,0.03396508]
[1766597017408,3.67930019,2944.9,2944.2,0.03396508]
[1766597018019,3.67930019,2944.9,2944.1,4.31458326]
[1766597018201,3.67930019,2944.9,2944.1,5.15399962]
[1766597018640,0.002,2944.7,2944.1,5.15399962]
[1766597021342,3.6134,2944.7,2944.1,5.15397451]
[1766597021510,3.6134,2944.7,2944.1,8.55059826]
[1766597021836,3.46339479,2945.1,2944.1,10.55763203]
[1766597021837,3.67930019,2945.1,2944.1,10.55763203]
[1766597022135,3.67930019,2945.1,2944.2,3.0967632]
[1766597022335,3.67930019,2945.1,2944.3,0.03396393]
[1766597022833,3.6114,2945.1,2944.3,0.03396393]
[1766597023196,3.6114,2945.1,2944.4,3.39627767]
[1766597023390,3.67930019,2945.1,2944.5,0.91796162]
[1766597024323,3.67930019,2945.1,2944.5,1.89312384]
[1766597026141,3.68130019,2945.1,2944.5,1.89312384]
[1766597026628,3.68130019,2945.1,2944.5,5.28923559]
[1766597028211,3.68130019,2945.1,2944.5,1.89312384]
[1766597028607,3.6114,2945.0,2944.5,0.91796162]
[1766597028925,3.6114,2944.6,2944.3,0.001]
[1766597029104,3.6114,2944.6,2944.0,3.89]
[1766597029511,0.06790019,2944.5,2944.0,3.89]
[1766597029702,3.6114,2944.4,2944.0,3.89]
[1766597029903,3.6114,2944.4,2943.9,4.28182203]
[1766597030533,3.6114,2944.4,2943.9,0.885]
[1766597031422,3.6114,2944.4,2944.0,2.041]
[1766597031598,3.6114,2944.4,2943.9,0.885]
[1766597031803,3.6114,2944.4,2943.9,0.001]
[1766597032109,3.6114,2944.3,2943.9,0.001]
[1766597033058,3.6114,2944.3,2943.5,3.39726533]
[1766597033654,3.39650838,2944.2,2943.4,0.001]
[1766597033837,3.6114,2944.1,2943.4,0.001]
[1766597034045,3.6114,2943.9,2943.4,0.001]
[1766597036348,7.0082819,2943.9,2943.4,0.001]
[1766597036522,3.6114,2943.8,2943.4,0.001]
[1766597036722,3.67930019,2943.8,2943.4,0.001]
[1766597037443,3.67930019,2943.8,2943.2,0.001]
[1766597037648,3.67930019,2943.6,2942.7,0.17841375]
[1766597037825,3.6114,2943.1,2942.7,1.375e-05]
[1766597038024,3.6114,2943.1,2942.2,0.91898817]
[1766597038831,3.6114,2943.1,2942.2,4.31780167]
[1766597039037,3.6114,2943.1,2942.3,0.03398701]
[1766597039267,3.6114,2942.9,2942.2,0.885]
[1766597039459,3.6114,2942.7,2942.2,0.885]
[1766597039963,3.6114,2942.6,2942.2,0.885]
[1766597040132,3.6114,2942.6,2942.2,0.001]
[1766597041557,3.39795997,2943.0,2942.2,3.39981507]
[1766597041729,3.7292,2942.9,2942.2,0.001]
[1766597041931,3.7292,2942.9,2942.2,3.39979284]
[1766597042132,3.7292,2942.9,2942.3,0.03398701]
[1766597044358,3.7292,2942.9,2942.3,0.91798701]
[1766597045460,3.7292,2942.9,2942.3,4.31668465]
[1766597047562,3.7292,2942.9,2942.3,0.91798701]
[1766597048065,3.7292,2943.0,2942.3,4.31668182]
[1766597048682,7.12710807,2943.0,2942.3,0.91798701]
[1766597050163,7.12709375,2943.0,2942.3,4.31668715]
[1766597050465,3.7292,2943.0,2942.3,4.31668715]
[1766597050965,7.12692161,2943.2,2942.3,8.48814756]
[1766597051256,0.002,2943.0,2942.3,8.45416055]
[1766597051457,0.002,2943.0,2942.3,5.05545886]
[1766597051662,0.002,2943.0,2942.3,5.08944587]
[1766597051862,0.002,2943.0,2942.4,0.84892512]
[1766597052064,0.002,2943.0,2942.5,0.0339847]
[1766597062874,3.7292,2943.8,2942.7,4.81978944]
[1766597063168,3.7292,2943.7,2943.1,4.81978944]
[1766597063487,3.7292,2943.7,2942.8,12.5000379]
[1766597063634,3.7292,2943.7,2942.9,1.25000379]
[1766597065166,3.7292,2943.7,2943.0,3.3978933]
[1766597065370,3.7292,2943.6,2942.9,4.64796586]
[1766597066167,3.7292,2943.6,2942.9,4.68194594]
[1766597066471,3.7292,2943.6,2943.0,0.896407]
[1766597067372,3.7292,2943.6,2943.0,4.2942541]